bitfinex-derivatives/quotes_ETHF0:USTF0_20260115
["timestamp","ask_amount","ask_price","bid_price","bid_amount"]
[1768443498797,0.00451128,3327.3,3326.0,0.14242354]
[1768443501301,0.00451128,3327.3,3326.1,0.96435465]
[1768443503005,0.00451128,3327.3,3326.0,0.14242354]
[1768443503303,0.00451128,3327.3,3326.1,0.96435465]
[1768443504603,0.00451128,3327.3,3326.4,0.96435465]
[1768443505004,0.00451128,3327.3,3326.7,0.96435465]
[1768443505299,0.00322334,3328.0,3326.6,1.33050149]
[1768443506296,0.00322334,3328.0,3327.0,0.00451128]
[1768443506612,0.00451128,3327.6,3327.0,0.0075055]
[1768443506800,0.00322334,3328.0,3327.0,0.0075055]
[1768443507911,0.0030075,3327.8,3327.0,0.0075055]
[1768443513708,0.13842023,3327.8,3327.0,0.0075055]
[1768443513908,0.13541273,3327.6,3326.1,3.74872563]
[1768443514210,0.13541273,3327.6,3326.0,1.195]
[1768443514813,0.13541273,3327.6,3326.5,0.00451128]
[1768443522417,0.0030075,3327.8,3326.5,0.00451128]
[1768443522818,0.0030075,3327.8,3326.5,0.13901277]
[1768443523212,0.0030075,3327.8,3326.6,0.13450149]
[1768443526823,0.0030075,3327.8,3326.6,0.28481149]
[1768443527018,0.13541273,3328.8,3326.7,0.13450149]
[1768443527222,0.81392552,3328.7,3326.7,0.13450149]
[1768443527418,0.81392552,3328.6,3327.2,0.96369171]
[1768443527623,1.09910444,3328.7,3327.2,0.96369171]
[1768443527925,0.94932402,3328.6,3327.2,0.96369171]
[1768443528127,0.13541273,3328.6,3327.2,0.96369171]
[1768443530529,0.00451128,3328.2,3327.5,0.96369171]
[1768443530728,0.00451128,3328.2,3327.2,0.96369171]
[1768443532730,0.00451128,3328.2,3327.5,0.96369171]
[1768443534728,0.00321076,3328.7,3327.5,0.96369171]
[1768443541042,0.00321076,3328.7,3327.5,1.10489325]
[1768443542840,0.00321076,3328.7,3327.9,0.96369171]
[1768443543042,0.00321076,3328.7,3327.5,0.14120154]
[1768443543043,0.00321076,3328.7,3328.0,0.96369171]
[1768443543243,0.1502,3329.1,3327.8,0.96369171]
[1768443543939,0.1502,3329.1,3327.8,1.10489325]
[1768443544243,0.15397007,3329.1,3327.8,1.10489325]
[1768443545644,0.00377007,3329.1,3327.8,1.10489325]
[1768443545835,0.00377007,3329.1,3328.0,0.96369171]
[1768443546042,0.00377007,3329.1,3328.2,0.00451128]
[1768443554652,0.96746178,3329.1,3328.2,0.00451128]
[1768443554946,0.96369171,3328.7,3328.2,0.00451128]
[1768443556157,0.00377007,3329.1,3328.2,0.00451128]
[1768443556354,0.96369171,3328.8,3328.2,0.00451128]
[1768443557954,0.14381377,3328.9,3327.4,0.14120154]
[1768443558162,0.96369171,3328.3,3327.0,0.14120154]
[1768443558355,0.96369171,3328.0,3327.0,0.14120154]
[1768443558556,0.96369171,3328.3,3327.0,0.14120154]
[1768443559049,0.00451128,3328.0,3327.3,0.00451128]
[1768443561153,0.00451128,3328.0,3326.6,0.15031]
[1768443562061,0.00451128,3328.0,3327.0,0.00451128]
[1768443565468,0.14664147,3329.1,3327.2,1.09773167]
[1768443565762,0.1428714,3328.9,3327.0,0.15480128]
[1768443566065,0.1428714,3328.7,3327.0,0.15480128]
[1768443566462,0.00451128,3328.2,3327.0,0.15480128]
[1768443567260,0.00451128,3328.2,3327.1,0.13378269]
[1768443572368,0.00451128,3328.2,3327.0,0.15480128]
[1768443572563,0.00451128,3328.2,3327.0,0.00451128]
[1768443575062,0.14738268,3328.2,3327.0,0.00451128]
[1768443576663,0.00377007,3329.1,3328.0,0.96394898]
[1768443576970,0.00377007,3329.1,3327.8,0.13378269]
[1768443578168,0.14664147,3329.1,3327.4,0.13378269]
[1768443578362,0.14664147,3329.1,3327.4,1.32878269]
[1768443581773,0.14664147,3329.1,3327.4,1.195]
[1768443583372,0.95944515,3329.0,3327.4,1.195]
[1768443583671,0.1428714,3329.0,3327.4,1.195]
[1768443585671,0.1428714,3328.8,3327.1,0.15029]
[1768443585974,0.95969382,3328.7,3327.1,1.34529]
[1768443586174,0.81682242,3328.6,3327.1,1.34529]
[1768443586675,0.00377007,3329.1,3327.3,0.13378269]
[1768443586974,0.81697982,3329.0,3327.3,0.13378269]
[1768443587171,0.81697982,3328.9,3327.3,0.13378269]
[1768443587363,0.00377007,3329.1,3327.3,0.13378269]
[1768443587566,0.81701041,3329.0,3327.3,0.13378269]
[1768443587864,0.81701041,3328.9,3327.3,0.13378269]
[1768443588064,0.00377007,3329.1,3327.3,0.13378269]
[1768443588276,0.81701026,3329.0,3327.3,0.13378269]
[1768443588472,0.81701026,3328.9,3327.3,0.13378269]
[1768443588672,0.00377007,3329.1,3327.3,0.13378269]
[1768443588875,0.81698603,3329.0,3327.3,0.13378269]
[1768443589172,0.81698603,3328.9,3327.3,0.13378269]
[1768443589369,0.00377007,3329.1,3327.3,0.13378269]
[1768443589575,0.81696265,3329.0,3327.3,0.13378269]
[1768443589775,0.81696265,3328.9,3327.3,0.13378269]
[1768443589967,0.00377007,3329.1,3327.3,0.13378269]
[1768443590166,0.8171207,3329.0,3327.3,0.13378269]
[1768443590467,0.81710286,3328.9,3327.3,0.13378269]
[1768443590667,0.2881556,3329.1,3327.3,0.13378269]
[1768443590865,0.81710402,3329.0,3327.3,0.13378269]
[1768443591069,0.95128955,3328.9,3327.3,0.13378269]
[1768443591270,0.13418553,3328.9,3327.3,0.13378269]
[1768443593178,0.15397007,3329.1,3327.3,0.13378269]
[1768443593374,0.81714654,3329.0,3327.6,0.96394898]
[1768443593672,0.00377007,3329.1,3327.7,0.13082184]
[1768443594868,0.00377007,3329.1,3327.7,0.28108184]
[1768443595073,0.00377007,3329.1,3328.1,0.13082184]
[1768443597275,0.13418553,3330.1,3328.1,0.13082184]
[1768443597479,0.13418553,3329.9,3328.8,0.00451128]
[1768443597781,0.15016,3330.1,3328.8,0.00451128]
[1768443597782,0.95092506,3329.8,3328.8,0.00451128]
[1768443598078,0.81673953,3329.7,3328.8,0.00451128]
[1768443598278,0.81673953,3329.6,3328.8,0.00451128]
[1768443598479,0.81673953,3329.5,3328.8,0.00666308]
[1768443598779,0.81673953,3329.4,3328.8,0.00666308]
[1768443598980,0.00296718,3329.7,3328.8,0.00666308]
[1768443599171,0.81665695,3329.6,3328.8,0.00666308]
[1768443599376,0.81665695,3329.5,3328.8,0.00666308]
[1768443599582,0.81665695,3329.4,3328.8,0.00666308]
[1768443599870,0.00296718,3329.7,3328.8,0.00666308]
[1768443600071,0.81659435,3329.6,3328.8,0.00666308]
[1768443600273,0.81659435,3329.5,3328.8,0.00666308]
[1768443600478,0.00296718,3329.7,3328.8,0.00666308]
[1768443600677,0.81656405,3329.6,3328.8,0.00666308]
[1768443600879,0.81656405,3329.5,3328.8,0.00666308]
[1768443601079,0.00296718,3329.7,3328.8,0.00666308]
[1768443601276,0.13418553,3329.5,3328.8,0.00666308]
[1768443601482,0.81648257,3329.4,3327.9,0.15025]
[1768443601682,0.13418553,3329.5,3327.9,0.15025]
[1768443601885,0.81652844,3329.4,3327.9,0.15025]
[1768443602081,0.13418553,3329.5,3327.9,0.15025]
[1768443602284,0.81650083,3329.4,3327.9,0.15025]
[1768443602582,0.00451128,3329.0,3328.3,0.00451128]
[1768443607486,0.15019,3329.4,3328.3,0.00451128]
[1768443617794,0.81751939,3329.3,3328.3,0.00451128]
[1768443617989,0.15019,3329.4,3328.3,0.00451128]
[1768443618188,0.81751955,3329.3,3328.3,0.00451128]
[1768443618389,0.15019,3329.4,3328.3,0.00451128]
[1768443618688,0.81757658,3329.3,3328.3,0.00451128]
[1768443618888,0.15019,3329.4,3328.3,0.00451128]
[1768443618889,0.13418553,3329.1,3328.3,0.00451128]
[1768443620491,0.81771138,3329.0,3328.3,0.00451128]
[1768443620795,0.13418553,3329.1,3328.3,0.00451128]
[1768443620995,0.81771493,3329.0,3328.3,0.00451128]
[1768443621188,0.13418553,3329.1,3328.3,0.00451128]
[1768443621391,0.817708,3329.0,3328.3,0.00451128]
[1768443621588,1.09764968,3329.1,3328.3,0.00451128]
[1768443621801,0.81779138,3329.0,3328.3,0.00451128]
[1768443622100,1.09764968,3329.1,3328.3,0.00451128]
[1768443622396,0.81777941,3329.0,3328.3,0.00451128]
[1768443622597,1.09764968,3329.1,3328.3,0.00451128]
[1768443622797,0.81787316,3329.0,3328.3,0.00451128]
[1768443622996,1.09764968,3329.1,3328.3,0.00451128]
[1768443623198,0.81787316,3329.0,3328.3,0.00451128]
[1768443623396,1.09764968,3329.1,3328.3,0.00451128]
[1768443623603,1.10287489,3328.9,3327.9,0.00279821]
[1768443623789,0.96346415,3328.0,3326.8,2.67766116]
[1768443623985,0.13941074,3328.3,3326.4,0.14396135]
[1768443623986,0.96346415,3327.7,3326.5,2.67766116]
[1768443624198,0.96346415,3327.7,3326.4,0.14396135]
[1768443624394,1.10287489,3328.0,3326.8,0.96346415]
[1768443624796,1.10287489,3328.0,3327.1,0.00451128]
[1768443625192,1.10287489,3328.0,3326.8,0.96568099]
[1768443626204,1.10287489,3328.0,3327.1,0.00451128]
[1768443628597,0.96346415,3327.7,3327.1,0.00451128]
[1768443628802,0.96346415,3327.7,3326.8,0.00221684]
[1768443631208,0.13941074,3327.9,3326.8,0.00221684]
[1768443632305,0.13941074,3327.9,3327.0,0.00451128]
[1768443632605,1.10287489,3327.9,3327.0,0.00451128]
[1768443636011,0.13941074,3327.9,3327.0,0.00451128]
[1768443640112,0.15025,3328.0,3327.0,0.00451128]
[1768443640310,0.13941074,3328.3,3327.3,0.96346415]
[1768443640518,0.15022,3328.6,3327.3,0.96346415]
[1768443640708,0.81405171,3328.5,3327.3,0.96346415]
[1768443640904,0.96346415,3328.5,3327.0,0.96797543]
[1768443641913,1.11369415,3328.5,3327.0,0.96797543]
[1768443642609,0.15023,3328.5,3327.0,0.96797543]
[1768443643018,0.15023,3328.5,3327.6,0.96346415]
[1768443645121,0.13941074,3329.1,3327.9,0.96346415]
[1768443646418,0.96346415,3329.0,3327.6,0.96346415]
[1768443652226,0.28961074,3329.1,3327.6,0.96346415]
[1768443652428,0.81593645,3329.0,3327.6,0.96346415]
[1768443652626,1.25307489,3329.1,3327.6,0.96346415]
[1768443652927,0.81593645,3329.0,3327.6,0.96346415]
[1768443653131,1.25307489,3329.1,3327.6,0.96346415]
[1768443653339,0.81601132,3329.0,3327.6,0.96346415]
[1768443653542,1.25307489,3329.1,3327.6,0.96346415]
[1768443653740,0.81601132,3329.0,3327.6,0.96346415]
[1768443653944,1.25307489,3329.1,3327.6,0.96346415]
[1768443654136,0.81601132,3329.0,3327.6,0.96346415]
[1768443654433,1.25307489,3329.1,3327.6,0.96346415]
[1768443654635,0.81590464,3329.0,3327.6,0.96346415]
[1768443654833,1.25307489,3329.1,3327.6,0.96346415]
[1768443655037,0.81590464,3329.0,3327.6,0.96346415]
[1768443655236,1.25307489,3329.1,3327.6,0.96346415]
[1768443656646,0.96346415,3328.8,3327.3,0.14396135]
[1768443656837,0.96346415,3328.2,3327.0,0.00451128]
[1768443660143,0.96346415,3327.8,3327.0,0.00451128]
[1768443660349,0.96346415,3327.5,3327.0,0.00157337]
[1768443660647,0.96346415,3327.5,3326.8,0.00221684]
[1768443661448,0.96346415,3327.8,3326.8,0.00451128]
[1768443662450,0.96346415,3327.8,3326.8,0.00690102]
[1768443662640,0.96346415,3327.5,3326.8,0.00690102]
[1768443662842,0.96346415,3327.2,3326.0,4.201]
[1768443663149,0.13585402,3327.4,3326.0,5.16446415]
[1768443663850,0.13897949,3327.4,3326.4,0.00451128]
[1768443672256,0.00312547,3327.4,3326.8,0.96346415]
[1768443673754,0.00451128,3327.9,3326.8,0.96346415]
[1768443674547,0.00451128,3327.9,3326.4,0.14238237]
[1768443674747,1.10720785,3327.9,3326.5,0.96346415]
[1768443675249,0.00788968,3327.9,3326.8,0.96346415]
[1768443676254,0.00788968,3327.9,3327.1,0.96346415]
[1768443676842,0.00788968,3327.9,3327.4,0.96346415]
[1768443677049,0.15023,3328.5,3327.4,0.96346415]
[1768443677553,0.15023,3328.5,3326.9,0.13787109]
[1768443677854,0.15023,3328.5,3327.3,0.96346415]
[1768443678052,0.00451128,3328.0,3327.3,0.96346415]
[1768443682162,0.15258658,3328.5,3327.6,0.96346415]
[1768443683262,0.00451128,3328.4,3327.6,0.96346415]
[1768443683562,0.00451128,3328.4,3327.3,0.13450169]
[1768443684451,0.00451128,3328.4,3327.4,1.09809395]
[1768443684758,0.00451128,3328.4,3327.5,0.13450169]
[1768443689567,0.00451128,3328.4,3326.7,0.13450169]
[1768443690457,0.00451128,3328.4,3326.7,1.09809395]
[1768443690657,0.00451128,3328.4,3326.8,0.13450169]
[1768443692971,0.13814618,3328.4,3326.8,0.13450169]
[1768443702174,0.13814618,3328.4,3326.9,0.13450169]
[1768443702365,0.00451128,3328.4,3327.0,0.13450169]
[1768443702872,0.13814618,3328.4,3326.9,0.1503]
[1768443705165,0.1336349,3327.8,3326.4,3.75323691]
[1768443705371,0.1336349,3327.8,3326.4,0.00451128]
[1768443705670,1.11385226,3327.9,3326.0,0.00244281]
[1768443705671,0.1336349,3327.4,3326.0,0.00244281]
[1768443705862,0.1336349,3327.0,3326.0,0.00244281]
[1768443708074,0.1336349,3327.0,3325.3,3.006]
[1768443708379,0.00451128,3326.5,3325.3,3.006]
[1768443708674,0.00451128,3326.5,3324.9,0.28489169]
[1768443709076,0.00451128,3326.5,3324.9,0.28732266]
[1768443709879,0.13814618,3326.5,3324.9,0.00243097]
[1768443710175,0.13814618,3326.5,3325.4,0.00451128]
[1768443711172,0.28846618,3326.5,3325.4,0.00451128]
[1768443711374,0.14397646,3325.7,3323.4,0.24333654]
[1768443711578,0.14397646,3325.5,3323.5,0.13205003]
[1768443712264,0.14397646,3325.5,3323.5,0.13448448]
[1768443712470,0.00451128,3324.8,3324.2,0.00451128]
[1768443715474,0.29438646,3324.6,3323.5,0.00243445]
[1768443716881,0.00451128,3324.8,3323.5,0.00243445]
[1768443718584,0.00451128,3324.8,3323.5,0.13448448]
[1768443720487,0.00451128,3324.8,3322.3,1.61572356]
[1768443721187,0.00451128,3324.8,3323.2,0.0030075]
[1768443721486,0.00451128,3324.8,3323.2,0.00647846]
[1768443721687,0.00451128,3324.8,3323.2,0.15694846]
[1768443721985,0.00451128,3324.8,3323.2,0.00647846]
[1768443722488,0.00451128,3324.8,3323.4,0.15046]
[1768443722681,5.487,3326.1,3323.4,0.15046]
[1768443722885,5.487,3326.1,3323.5,0.13205003]
[1768443723087,0.14397646,3325.7,3323.1,2.71698849]
[1768443723585,0.14397646,3325.7,3323.4,0.15046]
[1768443723784,0.29432646,3325.7,3323.4,0.15046]
[1768443723986,0.14397646,3325.2,3323.1,2.71698849]
[1768443724179,0.14397646,3324.8,3323.4,0.00237382]
[1768443724605,0.00451128,3324.9,3323.4,0.00237382]
[1768443724606,0.14397646,3324.5,3323.4,0.00237382]
[1768443725087,0.14397646,3324.4,3323.4,0.00237382]
[1768443725286,3.007,3325.8,3323.4,0.00237382]
[1768443725490,0.1504,3324.7,3323.4,0.00237382]
[1768443725692,0.14397646,3324.6,3322.3,2.71293385]
[1768443726181,0.14397646,3324.6,3322.4,0.1505]
[1768443726377,0.14397646,3324.6,3322.3,2.56242385]
[1768443726583,0.14627617,3324.6,3322.9,0.15048]
[1768443727382,0.00451128,3324.1,3322.9,0.15048]
[1768443727785,0.15037,3325.3,3322.9,0.15048]
[1768443727989,0.15037,3325.3,3323.0,0.13205003]
[1768443728191,0.14397646,3325.2,3322.3,2.26608812]
[1768443728697,0.14397646,3325.2,3322.9,0.15048]
[1768443728894,0.29435646,3325.1,3322.9,0.15048]
[1768443729096,0.00451128,3324.3,3322.9,0.15048]
[1768443730399,0.00451128,3324.3,3322.9,0.28253003]
[1768443730601,0.0038967,3325.2,3323.0,0.13205003]
[1768443731298,0.14397646,3325.0,3322.3,1.96761815]
[1768443731689,0.14397646,3325.0,3323.3,0.00451128]
[1768443733489,3.549,3325.7,3323.3,0.00451128]
[1768443733695,0.79557318,3325.6,3323.3,0.00451128]
[1768443733889,0.00451128,3324.8,3322.3,1.67365946]
[1768443734697,0.00763469,3324.8,3323.3,0.15046]
[1768443734906,0.00763469,3324.8,3323.7,0.00451128]
[1768443736296,0.00312341,3324.8,3323.7,0.00451128]
[1768443736601,5.483,3325.9,3323.7,0.00451128]
[1768443736796,0.79824511,3325.8,3323.7,0.00451128]
[1768443736996,0.14397646,3325.4,3322.5,8.84068247]
[1768443737305,0.79824511,3325.3,3322.6,6.457]
[1768443737503,0.00264822,3325.4,3323.0,1.67460266]
[1768443737802,0.00264822,3325.4,3323.9,0.15043]
[1768443738098,0.00451128,3325.0,3324.3,0.00451128]
[1768443738301,0.00264822,3325.4,3324.3,0.00451128]
[1768443739106,0.00264822,3325.4,3324.3,0.13656131]
[1768443739297,0.15031,3326.7,3324.3,0.13656131]
[1768443739607,0.00451128,3325.8,3323.6,3.90998131]
[1768443740403,0.00715781,3325.8,3323.6,3.90998131]
[1768443740598,0.00715781,3325.8,3324.3,0.15042]
[1768443741596,0.00715781,3325.8,3324.3,0.42914859]
[1768443742203,0.00715781,3325.8,3324.4,0.31813732]
[1768443742793,0.00715781,3325.8,3324.5,0.31813732]
[1768443743096,0.00715781,3325.8,3324.5,0.46854732]
[1768443743299,0.00715781,3325.8,3324.7,0.31813732]
[1768443743488,0.00715781,3325.8,3324.7,0.32145018]
[1768443743687,0.14397646,3326.5,3324.9,0.00451128]
[1768443743895,0.14397646,3326.5,3324.9,0.3226486]
[1768443744298,0.15031,3326.7,3324.9,0.3226486]
[1768443744498,0.48258445,3326.7,3324.9,0.3226486]
[1768443744798,0.48615342,3326.7,3324.9,0.3226486]
[1768443745401,0.33227445,3326.4,3324.9,0.00451128]
[1768443746413,0.00451128,3326.0,3324.9,0.00451128]
[1768443748603,0.33227445,3325.8,3323.6,0.31813732]
[1768443749507,0.33227445,3325.8,3323.6,0.32202111]
[1768443753099,0.33227445,3325.8,3324.4,0.00451128]
[1768443754723,0.00451128,3326.0,3324.4,0.3226486]
[1768443755730,0.33678573,3326.0,3324.4,0.3226486]
[1768443756429,0.33678573,3326.0,3324.4,0.00451128]
[1768443756818,0.33227445,3325.8,3324.4,0.00451128]
[1768443757017,0.33227445,3325.6,3324.4,0.00451128]
[1768443767435,0.96564904,3325.4,3324.4,0.00451128]
[1768443768145,0.96564904,3325.1,3324.4,0.00451128]
[1768443768333,0.96564904,3325.1,3323.6,0.47247111]
[1768443769034,0.96564904,3325.1,3323.6,0.32202111]
[1768443772042,0.48264445,3325.3,3324.0,0.00451128]
[1768443772241,0.96564904,3325.1,3324.0,0.00451128]
[1768443778739,0.48264445,3325.3,3324.0,0.00451128]
[1768443778946,2.41097155,3325.2,3324.0,0.00451128]
[1768443779143,0.80422235,3325.1,3324.0,0.00451128]
[1768443779336,1.6067492,3325.2,3324.0,0.00451128]
[1768443779536,0.80411578,3325.1,3324.0,0.00451128]
[1768443779745,1.6067492,3325.2,3324.0,0.00451128]
[1768443779943,0.804147,3325.1,3324.0,0.00451128]
[1768443780142,1.6067492,3325.2,3324.0,0.00451128]
[1768443780343,0.8041255,3325.1,3324.0,0.00451128]
[1768443780641,0.64110016,3325.1,3324.0,0.00451128]
[1768443780836,0.96564904,3324.4,3323.6,0.00388379]
[1768443781037,1.6067492,3324.6,3323.6,0.00388379]
[1768443781237,0.64110016,3324.5,3323.6,0.00388379]
[1768443781745,0.64110016,3324.5,3323.6,0.00067018]
[1768443781947,0.00451128,3324.4,3323.6,0.00067018]
[1768443782637,0.64561144,3324.4,3323.7,0.00451128]
[1768443787556,0.64561144,3324.4,3323.6,0.00067018]
[1768443787748,1.61126048,3324.4,3323.6,0.00067018]
[1768443788858,0.64561144,3324.4,3323.6,0.00067018]
[1768443789756,0.64110016,3325.3,3324.1,0.96564904]
[1768443789957,1.4443412,3325.2,3324.1,0.96564904]
[1768443790259,0.64110016,3325.2,3323.9,0.96564904]
[1768443790656,1.6067492,3325.2,3323.9,0.96564904]
[1768443790855,0.00451128,3324.9,3324.2,0.00451128]
[1768443797761,0.64561144,3324.9,3323.6,0.00067018]
[1768443797963,0.96564904,3324.3,3323.6,0.00067018]
[1768443798166,0.96821595,3324.3,3323.6,0.00067018]
[1768443804467,0.96564904,3323.9,3322.9,1.195]
[1768443804664,0.96564904,3323.7,3322.3,1.78849817]
[1768443805662,0.96564904,3323.7,3322.3,1.79151961]
[1768443805859,0.96564904,3323.5,3322.3,0.00302144]
[1768443806170,0.00451128,3323.2,3322.3,0.00302144]
[1768443809857,0.88888705,3323.1,3322.0,1.194]
[1768443810065,0.88888705,3323.1,3321.5,0.82284913]
[1768443811061,0.88888705,3323.1,3321.5,0.82559555]
[1768443818670,0.88888705,3323.1,3321.5,0.00274642]
[1768443819071,0.88888705,3322.9,3321.5,0.00274642]
[1768443823290,1.03936705,3322.9,3321.5,0.00274642]
[1768443824086,0.88888705,3322.5,3320.7,0.82284913]
[1768443825287,0.88888705,3322.5,3320.7,0.82529441]
[1768443825907,0.1505,3322.4,3320.7,0.82529441]
[1768443826078,0.88888705,3322.3,3320.7,0.82529441]
[1768443826989,0.88888705,3322.0,3320.7,0.00244528]
[1768443828287,40.8,3322.9,3321.1,0.82284913]
[1768443828288,1.03937705,3322.7,3321.1,0.82284913]
[1768443830182,0.88888705,3322.4,3320.7,0.00244528]
[1768443831182,0.15051,3322.2,3320.7,0.00244528]
[1768443831383,0.15051,3322.2,3320.8,1.92590723]
[1768443832289,1.13721772,3322.8,3320.9,0.95924367]
[1768443832591,1.13722772,3322.6,3320.7,0.96168895]
[1768443832893,1.13723772,3322.4,3320.7,0.96168895]
[1768443834796,1.13723772,3322.4,3320.9,1.92590723]
[1768443834992,0.98672772,3322.4,3320.9,1.92590723]
[1768443835196,0.98672772,3323.0,3321.0,0.95924367]
[1768443835400,0.98672772,3322.8,3321.0,0.95924367]
[1768443836894,0.80141278,3322.7,3321.0,0.95924367]
[1768443837096,0.98672772,3322.8,3321.0,0.95924367]
[1768443837286,0.801607,3322.7,3321.0,0.95924367]
[1768443837488,0.98672772,3322.8,3321.0,0.95924367]
[1768443837688,0.80163743,3322.7,3321.0,0.95924367]
[1768443837988,0.98672772,3322.8,3321.0,0.95924367]
[1768443838187,0.8016052,3322.7,3321.0,0.95924367]
[1768443838394,0.98672772,3322.8,3321.0,0.95924367]
[1768443838594,0.80190145,3322.7,3321.0,0.95924367]
[1768443838796,0.98672772,3322.8,3321.0,0.95924367]
[1768443838994,0.80190379,3322.7,3321.0,0.95924367]
[1768443839300,0.80211991,3322.6,3321.0,0.95924367]
[1768443839499,0.98672772,3322.8,3321.0,0.95924367]
[1768443839700,0.80211931,3322.7,3321.0,0.95924367]
[1768443839899,0.80211931,3322.6,3321.0,0.95924367]
[1768443840091,0.98672772,3322.8,3321.0,0.95924367]
[1768443840291,0.80211919,3322.7,3321.0,0.95924367]
[1768443840492,0.80211919,3322.6,3321.0,0.95924367]
[1768443840700,3.46172772,3322.8,3321.0,0.95924367]
[1768443840907,0.80223679,3322.7,3321.0,0.95924367]
[1768443841193,0.80223679,3322.6,3321.0,0.95924367]
[1768443841398,3.46172772,3322.8,3321.0,0.95924367]
[1768443841601,0.80234786,3322.7,3321.0,0.95924367]
[1768443841797,0.80234786,3322.6,3321.0,0.95924367]
[1768443841995,0.98672772,3322.8,3321.0,0.95924367]
[1768443841996,2.477,3322.7,3321.0,0.95924367]
[1768443842186,0.80234996,3322.6,3321.0,0.95924367]
[1768443842390,2.477,3322.7,3321.0,0.95924367]
[1768443842592,0.80264804,3322.6,3321.0,0.95924367]
[1768443842793,2.477,3322.7,3321.0,0.95924367]
[1768443843096,3.470239,3323.2,3321.3,1.10979367]
[1768443843300,0.98672772,3323.0,3321.3,0.95924367]
[1768443843500,0.98672772,3322.8,3321.3,0.95924367]
[1768443850099,1.141709,3323.2,3321.3,0.95924367]
[1768443850300,3.28728515,3323.1,3321.3,0.95924367]
[1768443850498,0.80328515,3323.0,3321.3,0.95924367]
[1768443850693,0.80328515,3322.9,3321.3,0.95924367]
[1768443851005,2.485,3323.1,3321.3,0.95924367]
[1768443851304,0.8026987,3323.0,3321.3,0.95924367]
[1768443851502,2.485,3323.1,3321.3,0.95924367]
[1768443851704,0.80262276,3323.0,3321.3,0.95924367]
[1768443851902,0.98672772,3322.6,3321.1,2.69145488]
[1768443852102,0.98672772,3322.6,3320.9,0.95924367]
[1768443852408,0.98672772,3322.6,3320.9,1.10981367]
[1768443854007,0.98672772,3322.6,3320.7,0.00244528]
[1768443854208,0.98672772,3322.4,3320.7,0.00244528]
[1768443855712,0.98672772,3322.4,3320.7,0.96168895]
[1768443864132,1.07909656,3323.1,3321.0,1.05540373]
[1768443864331,1.07909656,3322.9,3321.3,0.96666356]
[1768443864530,1.07909656,3322.9,3321.3,1.05540373]
[1768443864830,1.88398911,3322.8,3321.1,1.34556]
[1768443865029,1.88398911,3322.8,3321.1,2.40096373]
[1768443865030,1.07909656,3322.8,3321.1,2.40096373]
[1768443865825,1.07909656,3322.8,3321.2,1.05540373]
[1768443866633,1.07909656,3322.8,3321.3,1.05540373]
[1768443866822,1.23407784,3323.2,3321.3,1.05540373]
[1768443867023,0.80492486,3323.1,3321.3,1.05540373]
[1768443867219,0.80492486,3323.0,3321.3,1.05540373]
[1768443867430,1.77191228,3323.0,3321.6,0.96698742]
[1768443867732,0.80492486,3322.9,3321.6,0.96698742]
[1768443868435,0.00451128,3323.2,3322.2,0.96698742]
[1768443869330,0.00451128,3323.2,3321.9,1.05540373]
[1768443869533,0.00451128,3323.2,3322.1,0.96698742]
[1768443871733,0.00451128,3323.2,3322.4,0.96698742]
[1768443872035,0.00451128,3323.2,3322.0,1.05540373]
[1768443872036,0.00451128,3323.2,3322.7,0.96698742]
[1768443872238,1.07909656,3323.9,3322.7,0.96698742]
[1768443872923,1.07909656,3323.9,3322.4,0.96698742]
[1768443873142,0.00451128,3323.5,3322.8,0.00451128]
[1768443875936,0.96698742,3324.1,3322.8,0.00451128]
[1768443876534,1.08166347,3324.3,3322.9,0.96698742]
[1768443876737,1.08166347,3324.3,3323.2,0.96698742]
[1768443876933,0.00451128,3324.1,3323.2,0.00387971]
[1768443879632,0.96698742,3324.0,3323.2,0.00387971]
[1768443880636,2.04608398,3324.0,3323.2,0.00387971]
[1768443880834,0.96698742,3323.4,3322.8,0.00451128]
[1768443881130,0.96698742,3323.4,3322.0,0.96698742]
[1768443881928,0.96698742,3323.2,3322.0,0.0027307]
[1768443882933,0.96698742,3323.2,3322.3,0.00451128]
[1768443883135,1.07909656,3323.6,3322.3,0.00451128]
[1768443883329,0.96698742,3323.3,3322.3,0.00451128]
[1768443884434,0.96698742,3322.9,3322.3,0.00451128]
[1768443884939,2.04608398,3323.1,3322.3,0.00451128]
[1768443885840,0.96698742,3323.4,3322.3,0.00451128]
[1768443888739,0.96698742,3323.9,3322.5,0.96698742]
[1768443888948,2.04608398,3323.9,3322.5,0.96698742]
[1768443889142,1.07909656,3323.8,3322.5,0.96698742]
[1768443890146,0.96698742,3323.6,3322.3,0.00451128]
[1768443890340,1.07909656,3323.5,3322.3,0.00451128]
[1768443891838,2.19296331,3323.3,3322.3,0.00451128]
[1768443892137,1.22597589,3323.2,3322.3,0.00451128]
[1768443894947,2.19296331,3323.6,3322.3,0.00451128]
[1768443895248,1.22597589,3323.6,3322.4,0.96698742]
[1768443895942,1.37641589,3323.8,3322.4,0.96698742]
[1768443896140,2.03391545,3323.7,3322.4,0.96698742]
[1768443896336,1.22597589,3323.7,3322.4,0.96698742]
[1768443896541,1.22597589,3323.7,3322.3,0.00451128]
[1768443897030,2.19296331,3323.5,3322.3,0.00451128]
[1768443897236,1.22597589,3323.5,3322.3,0.00451128]
[1768443898437,0.15044,3323.8,3322.4,0.96698742]
[1768443898639,0.80842138,3323.7,3322.4,0.96698742]
[1768443898846,1.22597589,3323.9,3322.4,0.96698742]
[1768443899040,0.80843998,3323.8,3322.4,0.96698742]
[1768443899347,1.22597589,3323.9,3322.4,0.96698742]
[1768443899548,0.80847276,3323.8,3322.7,0.96698742]
[1768443899752,1.22597589,3323.9,3322.7,0.96698742]
[1768443899937,0.80832496,3323.8,3322.7,0.96698742]
[1768443900138,1.22597589,3323.9,3322.7,0.96698742]
[1768443900337,0.80829612,3323.8,3322.7,0.96698742]
[1768443900537,1.22597589,3323.9,3322.7,0.96698742]
[1768443900744,0.80829654,3323.8,3322.7,0.96698742]
[1768443901047,1.22597589,3323.9,3322.7,0.96698742]
[1768443901245,3.00120772,3323.8,3322.4,0.96698742]
[1768443901449,2.19296331,3323.8,3322.4,0.96698742]
[1768443901746,2.19296331,3323.8,3322.3,0.00451128]
[1768443901948,0.96698742,3323.5,3322.3,0.00451128]
[1768443904248,1.22597589,3323.7,3322.3,0.00451128]
[1768443904453,1.22597589,3323.6,3322.3,0.00451128]
[1768443905855,1.22597589,3323.6,3322.5,0.96698742]
[1768443906043,0.00451128,3324.1,3323.4,0.96698742]
[1768443906748,0.00451128,3324.1,3323.0,0.96698742]
[1768443907348,0.00451128,3324.1,3322.7,1.30252643]
[1768443907652,0.00451128,3324.1,3322.8,0.15048]
[1768443907853,0.00451128,3324.1,3322.9,1.15203643]
[1768443913859,1.22597589,3325.0,3323.2,1.15203643]
[1768443914958,0.00451128,3324.1,3323.2,1.15203643]
[1768443915456,1.22597589,3325.0,3323.2,1.15203643]
[1768443915858,1.22597589,3325.0,3323.3,2.34703643]
[1768443916050,1.22597589,3325.0,3323.4,1.15203643]
[1768443916448,0.00451128,3324.2,3323.4,1.15203643]